bitfinex/quotes_ETHUSD_20240718
["timestamp","ask_amount","ask_price","bid_price","bid_amount"]
[1721267420050,7.16,3428.0,3427.3,2.91774]
[1721267420247,10.07721,3428.0,3427.3,2.91774]
[1721267420471,10.07721,3428.0,3427.6,2.91748]
[1721267420472,7.16,3428.0,3427.6,2.91748]
[1721267421649,7.16,3428.0,3427.4,2.91762]
[1721267421890,4.14005176,3428.2,3427.4,2.91762]
[1721267422559,4.14005176,3428.2,3427.1,2.91789]
[1721267422560,2.91723,3428.0,3427.1,2.91789]
[1721267422974,2.91735,3427.8,3427.1,2.91789]
[1721267423158,2.91741,3427.7,3427.1,0.830577]
[1721267423359,2.91741,3427.7,3427.0,2.91799]
[1721267423360,5.27271,3427.7,3427.0,2.91799]
[1721267423786,5.27271,3427.7,3426.9,2.91808]
[1721267423787,5.27167716,3427.7,3426.9,2.91808]
[1721267424690,2.9175,3427.6,3426.9,2.91808]
[1721267425563,2.91776,3427.3,3426.5,2.91841]
[1721267425752,2.91776,3427.3,3426.5,3.90492716]
[1721267426290,2.91783,3427.2,3426.5,3.90492716]
[1721267426495,5.83545,3427.4,3426.5,3.90492716]
[1721267426788,2.91775,3427.3,3426.5,3.90492716]
[1721267426995,2.91771,3427.4,3426.5,3.90492716]
[1721267427167,2.91771,3427.4,3426.7,2.91824]
[1721267428887,2.91777,3427.3,3426.5,2.91841]
[1721267429102,2.91786,3427.2,3426.4,2.9185]
[1721267429265,5.27292,3427.1,3426.4,2.9185]
[1721267429857,2.918,3427.0,3426.2,2.91866]
[1721267430057,2.91814,3426.9,3425.9,2.3861]
[1721267430270,2.91814,3426.9,3426.2,2.91867]
[1721267432896,2.91814,3426.9,3426.0,3.15745]
[1721267433219,2.91819,3426.8,3426.0,3.15745]
[1721267433375,2.91828,3426.7,3426.0,3.15745]
[1721267433575,2.91828,3426.7,3426.0,2.91884]
[1721267433805,2.91834,3426.6,3425.8,2.91896]
[1721267434311,3.57802176,3427.1,3425.8,2.91896]
[1721267434468,2.91843,3426.5,3425.8,2.91896]
[1721267435192,5.25453,3426.5,3425.8,2.91896]
[1721267435491,5.25453,3426.5,3425.9,0.819154]
[1721267435896,2.91851,3426.4,3425.8,2.91896]
[1721267436518,5.8371,3426.4,3425.6,2.91913]
[1721267436808,2.91869,3426.2,3425.4,2.91935]
[1721267437023,2.91869,3426.2,3425.5,2.91927]
[1721267439398,2.91869,3426.2,3425.3,5.41588]
[1721267439570,2.91869,3426.2,3425.4,3.460948]
[1721267439783,2.91887,3426.0,3425.0,5.25468]
[1721267440389,2.91887,3426.0,3425.2,2.91952]
[1721267440626,2.91894,3425.9,3425.2,2.91952]
[1721267441612,2.91882,3426.1,3425.3,2.91944]
[1721267441789,2.91869,3426.2,3425.4,0.583905]
[1721267441790,2.91885,3426.0,3425.4,0.583905]
[1721267445425,5.24895,3426.0,3425.3,2.91944]
[1721267447092,2.91885,3426.0,3425.3,2.91944]
[1721267451040,2.91885,3426.0,3425.4,2.91935]
[1721267451497,7.16,3426.4,3425.7,2.91906]
[1721267451710,7.16,3426.4,3425.9,2.91887]
[1721267453238,7.16,3426.4,3425.6,6.36568]
[1721267453441,1.044,3426.2,3425.6,5.32168]
[1721267453647,1.044,3426.2,3425.3,2.3492]
[1721267454344,3.96285,3426.0,3425.3,5.26865]
[1721267455641,3.96285,3426.0,3425.3,2.91945]
[1721267455849,6.42535,3426.0,3425.3,2.91945]
[1721267458022,3.96285,3426.0,3425.3,2.91945]
[1721267458356,3.96285,3426.0,3425.4,0.583905]
[1721267458547,2.91885,3426.0,3425.3,2.91945]
[1721267458750,2.91895,3425.9,3425.3,2.91945]
[1721267459342,3.96285,3426.0,3425.3,2.91945]
[1721267460109,2.91894,3425.9,3425.3,2.91945]
[1721267460314,3.96259,3426.0,3425.3,2.91945]
[1721267460513,2.91894,3425.9,3425.3,2.91945]
[1721267461635,2.91894,3425.9,3425.2,2.91952]
[1721267462862,1.044,3426.0,3425.3,2.91943]
[1721267463220,3.96291,3426.0,3425.3,2.91943]
[1721267464361,2.91895,3425.9,3425.3,2.91943]
[1721267464659,2.91895,3425.9,3425.1,2.9196]
[1721267464862,2.91895,3425.9,3425.2,3.842437]
[1721267465020,3.96291,3426.0,3425.2,3.842437]
[1721267465221,2.91895,3425.9,3425.2,3.842437]
[1721267467811,1.044,3426.0,3425.3,2.91943]
[1721267468017,7.16,3426.4,3425.6,2.91913]
[1721267468254,7.16,3426.4,3425.7,0.291913]
[1721267468255,3.0,3426.3,3425.7,0.291913]
[1721267468953,3.0,3426.3,3425.7,3.211003]
[1721267469748,5.9186,3426.3,3425.7,3.211003]
[1721267469950,5.9186,3426.3,3425.7,2.91909]
[1721267470532,1.044,3426.2,3425.7,2.91909]
[1721267471478,5.9186,3426.3,3425.7,2.91909]
[1721267471633,7.16,3426.4,3425.9,1.044]
[1721267471967,7.16,3426.4,3426.3,5.303]
[1721267472167,8.204,3427.0,3426.4,2.91849]
[1721267472366,8.204,3427.0,3426.3,2.3844]
[1721267472367,8.204,3427.0,3426.3,5.30298]
[1721267472573,3.96225,3426.7,3426.0,2.3844]
[1721267472782,1.044,3426.5,3425.8,2.91901]
[1721267474271,2.91835,3426.6,3425.8,2.91901]
[1721267474640,2.91843,3426.5,3425.8,2.91901]
[1721267474836,2.91835,3426.6,3425.6,2.91916]
[1721267475042,4.14137176,3426.6,3425.6,2.91916]
[1721267475649,1.22302176,3426.5,3425.6,2.91916]
[1721267476077,2.9186,3426.3,3425.4,5.20563]
[1721267476288,2.4687,3426.2,3425.4,2.2863]
[1721267476577,2.91887,3426.0,3425.2,2.91952]
[1721267477753,2.91887,3426.0,3425.3,2.91945]
[1721267478071,2.91911,3425.7,3425.1,2.4918]
[1721267482161,4.14199176,3425.9,3425.1,5.41141]
[1721267482379,1.22302176,3426.1,3425.2,2.91952]
[1721267482694,4.14175176,3426.2,3425.4,2.91936]
[1721267483063,2.91878,3426.1,3425.4,2.91936]
[1721267483263,2.91885,3426.0,3425.2,2.91952]
[1721267483770,2.91885,3426.0,3425.3,2.91944]
[1721267485025,1.22302176,3426.1,3425.4,2.91936]
[1721267485506,4.14175176,3426.2,3425.4,2.91936]
[1721267485708,2.91878,3426.1,3425.4,2.91936]
[1721267486192,4.14180176,3426.1,3425.4,2.91936]
[1721267486394,2.91878,3426.1,3425.4,2.91936]
[1721267487101,2.91878,3426.1,3425.2,2.91952]
[1721267487102,4.14180176,3426.1,3425.2,2.91952]
[1721267487540,1.22302176,3426.0,3425.3,2.91945]
[1721267488285,4.14180176,3426.1,3425.3,2.91945]
[1721267490030,4.14180176,3426.1,3425.4,2.91935]
[1721267491192,1.22302176,3426.0,3425.4,2.91935]
[1721267492307,4.14180176,3426.1,3425.4,2.91935]
[1721267493707,1.22302176,3426.1,3425.4,0.833067]
[1721267493900,1.22302176,3426.3,3425.8,2.91895]
[1721267494106,8.38302176,3426.4,3425.8,2.91895]
[1721267494339,7.16,3426.4,3425.8,2.91895]
[1721267494530,8.204,3426.4,3425.8,2.91895]
[1721267495233,8.204,3426.4,3425.7,2.2963]
[1721267495234,8.204,3426.4,3425.9,2.91894]
[1721267495441,7.16,3426.4,3426.1,2.4447]
[1721267495846,8.38302176,3426.9,3426.1,2.4447]
[1721267496145,7.16,3426.9,3426.8,5.36287]
[1721267496312,7.16,3427.5,3426.9,2.91804]
[1721267496932,7.16,3427.5,3426.8,2.4447]
[1721267496933,7.16,3427.5,3427.1,2.91788]
[1721267497132,7.16,3427.5,3427.2,2.91776]
[1721267497441,7.16,3427.5,3427.3,2.91773]
[1721267497960,7.16,3427.5,3427.4,2.91766]
[1721267502158,7.16,3428.1,3427.4,2.91766]
[1721267502356,2.91699,3428.2,3427.4,2.91766]
[1721267502537,2.91699,3428.2,3427.2,2.91778]
[1721267503820,2.91723,3428.0,3427.2,2.91778]
[1721267504329,2.91724,3427.9,3427.0,2.91797]
[1721267506022,2.91724,3427.9,3427.2,2.91783]
[1721267506551,2.91707,3428.1,3427.3,2.91773]
[1721267508819,2.91707,3428.1,3427.1,2.9179]
[1721267508820,2.91707,3428.1,3427.4,2.91765]
[1721267509034,2.91701,3428.2,3427.4,2.91765]
[1721267509237,7.16,3428.4,3427.7,2.91732]
[1721267509414,7.16,3428.4,3428.1,2.91704]
[1721267509616,4.13917176,3429.2,3427.5,2.2628]
[1721267509617,7.16,3428.9,3428.3,2.91688]
[1721267509824,7.16,3428.9,3428.8,2.91647]
[1721267510078,10.07587,3429.5,3428.8,2.91647]
[1721267510225,10.07587,3429.5,3428.7,2.91655]
[1721267510880,2.91597,3429.4,3428.3,5.491458]
[1721267511174,2.91597,3429.4,3428.7,2.91655]
[1721267511380,2.91597,3429.4,3428.4,2.91673]
[1721267511542,2.91605,3429.3,3428.5,2.91671]
[1721267511747,2.91597,3429.4,3428.6,2.91664]
[1721267512441,2.91604,3429.3,3428.5,2.9167]
[1721267512828,2.91614,3429.2,3428.3,0.291688]
[1721267513031,2.91614,3429.2,3428.2,2.91696]
[1721267513343,2.504,3429.3,3427.9,2.348]
[1721267513546,2.91631,3429.0,3427.9,5.26518]
[1721267513857,2.91666,3428.6,3427.5,2.348]
[1721267514062,2.91656,3428.7,3427.5,2.348]
[1721267514063,2.91673,3428.5,3427.6,2.91747]
[1721267514238,10.07656,3428.7,3427.3,2.91772]
[1721267514239,2.91681,3428.4,3427.3,2.91772]
[1721267514438,2.91697,3428.3,3427.5,2.91757]
[1721267514634,2.91699,3428.2,3427.3,2.91769]
[1721267514845,2.91708,3428.1,3427.3,2.91769]
[1721267515039,2.91715,3428.0,3427.1,5.34036]
[1721267515375,2.91715,3428.0,3427.2,2.91783]
[1721267515791,2.91715,3428.0,3426.4,2.504]
[1721267515792,2.91715,3428.0,3426.8,2.91816]
[1721267516085,2.9174,3427.7,3426.8,2.91816]
[1721267517073,2.91751,3427.6,3426.8,2.91816]
[1721267518556,2.91751,3427.6,3426.9,2.91808]
[1721267520763,2.91737,3427.8,3426.8,0.813778]
[1721267520993,2.91737,3427.8,3427.0,2.91799]
[1721267521295,10.07709,3428.1,3427.1,0.05835614]
[1721267521509,10.07709,3428.1,3427.3,2.91773]
[1721267522376,7.16,3428.1,3427.3,2.3151]
[1721267522577,7.16,3428.1,3427.7,2.91735]
[1721267522914,2.91674,3428.5,3427.7,2.91735]
[1721267522915,2.91681,3428.4,3427.7,2.91735]
[1721267523415,2.91681,3428.4,3427.5,2.91752]
[1721267523570,2.91699,3428.2,3427.3,5.2328]
[1721267524099,2.91708,3428.1,3427.3,5.2328]
[1721267524301,2.91708,3428.1,3427.2,0.29763461]
[1721267524595,2.91715,3428.0,3427.2,3.21545461]
[1721267528289,2.91715,3428.0,3427.3,2.91774]
[1721267528503,2.91704,3428.2,3427.3,3.53107546]
[1721267529017,2.91704,3428.2,3427.4,2.91765]
[1721267529375,2.91708,3428.1,3427.4,2.91765]
[1721267529587,10.07679,3428.5,3427.7,2.91739]
[1721267529816,2.91681,3428.4,3427.7,2.91739]
[1721267530038,2.91681,3428.4,3427.7,3.48393237]
[1721267530532,7.16,3428.5,3427.7,3.48393237]
[1721267530533,7.16,3428.5,3427.8,2.91729]
[1721267530710,10.07673,3428.5,3427.8,2.91729]
[1721267531220,10.07673,3428.5,3427.7,0.56654237]
[1721267531580,10.07673,3428.5,3427.7,3.48393237]
[1721267534231,2.91698,3428.2,3427.4,2.91765]
[1721267535307,2.91698,3428.2,3427.5,2.91757]
[1721267535506,2.91716,3428.0,3427.1,2.449]
[1721267535693,2.91716,3428.0,3427.1,6.203557]
[1721267536093,2.91725,3427.9,3427.1,6.203557]
[1721267536284,2.91725,3427.9,3427.2,2.9178]
[1721267536607,2.91713,3428.1,3427.3,2.91773]
[1721267536810,2.91717,3428.0,3427.3,2.91773]
[1721267537129,2.91717,3428.0,3427.4,0.9121227]
[1721267541353,2.91717,3428.0,3427.3,2.91773]
[1721267542144,5.83406,3428.2,3427.3,2.91773]
[1721267542451,2.91706,3428.1,3427.3,2.91773]
[1721267542812,8.38302176,3428.5,3427.6,2.91744]
[1721267543042,2.91682,3428.4,3427.7,2.91738]
[1721267543237,8.38302176,3428.5,3427.9,2.91723]
[1721267543453,7.16,3428.5,3427.9,2.91723]
[1721267543823,2.91665,3428.6,3427.9,2.91723]
[1721267544233,4.13967176,3428.6,3427.9,2.91723]
[1721267544848,2.91673,3428.5,3427.8,2.3003]
[1721267545330,2.91721,3428.0,3427.1,2.91785]
[1721267545509,2.91721,3428.0,3427.2,2.91781]
[1721267545713,2.91721,3428.0,3427.3,2.91774]
[1721267546606,2.91721,3428.0,3427.1,5.8357]
[1721267546810,2.91721,3428.0,3427.1,3.74369]
[1721267547032,2.91721,3428.0,3427.2,2.91781]
[1721267548840,2.91704,3428.2,3427.3,2.91774]
[1721267549048,2.91704,3428.2,3427.4,2.4506]
[1721267550061,2.91707,3428.1,3427.4,2.4506]
[1721267550364,2.91715,3428.0,3427.4,2.4506]
[1721267551237,2.91715,3428.0,3427.4,3.361803]
[1721267551748,2.91715,3428.0,3427.4,6.279453]
[1721267552377,2.91715,3428.0,3427.4,5.36825]
[1721267552861,2.91715,3428.0,3427.2,2.91777]
[1721267553013,2.91764,3427.5,3426.6,2.2579]
[1721267553217,2.91776,3427.3,3426.5,2.91836]
[1721267553428,2.91776,3427.3,3426.5,3.435986]
[1721267555217,2.91766,3427.4,3426.6,2.91832]
[1721267557719,2.91775,3427.3,3426.6,2.91832]
[1721267559951,2.91791,3427.1,3426.4,2.91851]
[1721267563943,5.22176,3427.3,3426.4,2.91851]
[1721267563944,2.918,3427.0,3426.4,2.91851]
[1721267565573,2.918,3427.0,3426.2,5.17656]
[1721267565778,2.918,3427.0,3426.2,6.2861]
[1721267566645,2.918,3427.0,3426.3,2.91858]
[1721267570254,2.91811,3426.9,3426.2,2.2579]
[1721267570535,2.91811,3426.9,3426.2,5.17657]
[1721267571574,2.91818,3426.8,3426.2,2.2579]
[1721267572139,2.918,3427.0,3426.2,5.986128]
[1721267572441,2.91809,3426.9,3426.2,5.986128]
[1721267573364,2.91809,3426.9,3426.2,5.17657]
[1721267573566,2.91818,3426.8,3426.2,5.17657]
[1721267573760,2.91818,3426.8,3426.2,2.2579]
[1721267573960,2.91818,3426.8,3426.0,2.91882]
[1721267573961,2.91826,3426.7,3426.0,2.91882]
[1721267574283,2.91835,3426.6,3425.8,5.22317]
[1721267574572,2.91835,3426.6,3425.8,6.337395]
[1721267574792,5.35395,3426.6,3425.8,6.337395]
[1721267575990,2.91845,3426.5,3425.8,3.418425]
[1721267576877,2.91845,3426.5,3425.8,6.337425]
[1721267578583,2.91835,3426.6,3425.9,2.91892]
[1721267578875,2.91843,3426.5,3426.0,0.9256345]
[1721267579077,2.91843,3426.5,3425.9,2.91892]
[1721267579281,2.4502,3427.0,3426.0,2.91885]
[1721267579282,2.9183,3426.7,3426.0,2.91885]
[1721267580252,2.9182,3426.8,3425.8,6.337445]
[1721267580476,3.50462176,3427.4,3426.0,2.4785]
[1721267580786,2.91797,3427.1,3426.4,5.39695]
[1721267581642,2.91783,3427.2,3426.1,2.4875]
[1721267581841,2.91825,3426.8,3426.0,2.91885]
[1721267584086,5.31135,3426.8,3426.0,2.91885]
[1721267584240,5.31135,3426.8,3426.1,2.91876]
[1721267584241,2.91825,3426.8,3426.1,2.91876]
[1721267584647,2.91808,3427.0,3426.3,2.91856]
[1721267585345,2.91786,3427.2,3426.4,2.4824]
[1721267585541,2.91786,3427.2,3426.5,2.91837]
[1721267589191,2.91792,3427.1,3426.5,2.91837]
[1721267590278,2.91792,3427.1,3426.4,2.4824]
[1721267590785,2.91792,3427.1,3426.4,5.40083]
[1721267591081,5.33779,3427.4,3426.5,3.8087342]
[1721267591307,2.91784,3427.2,3426.5,3.8087342]
[1721267591513,4.14054176,3427.6,3426.5,3.8087342]
[1721267591807,11.30045176,3427.7,3426.5,0.8903142]
[1721267592104,10.07743,3427.7,3427.0,5.17327]
[1721267592806,7.16,3427.7,3427.0,2.2553]
[1721267593117,7.16,3427.7,3427.3,2.91768]
[1721267593407,7.14019176,3428.0,3427.3,2.91768]
[1721267593979,4.14029176,3427.9,3427.1,2.91786]
[1721267594172,4.14034176,3427.8,3427.1,2.91786]
[1721267594672,2.91732,3427.8,3427.1,2.91786]
[1721267595474,2.91741,3427.7,3427.0,2.2553]
[1721267595675,2.91741,3427.7,3426.9,2.91803]
[1721267595676,4.14043176,3427.7,3426.9,2.91803]
[1721267596309,2.9175,3427.6,3426.8,2.91815]
[1721267596804,2.9175,3427.6,3426.9,2.91806]
[1721267601116,3.71882176,3427.7,3426.9,2.91806]
[1721267601328,4.14043176,3427.7,3427.0,2.91796]
[1721267602417,5.18343176,3427.7,3427.0,2.91796]
[1721267603916,1.22302176,3427.6,3427.0,2.91796]
[1721267604105,1.043,3427.5,3427.0,2.91796]
[1721267604315,4.14043176,3427.7,3427.0,2.91796]
[1721267604907,5.35461,3427.6,3426.8,2.91811]
[1721267605108,2.91777,3427.3,3426.5,2.91835]
[1721267605327,2.91777,3427.3,3426.4,5.29373]
[1721267606132,2.91823,3426.8,3426.0,2.91883]
[1721267606339,2.4543,3426.7,3426.0,2.91883]
[1721267606551,5.37257,3426.7,3426.0,2.91883]
[1721267606834,5.37257,3426.7,3425.9,2.91888]
[1721267607640,2.91834,3426.6,3425.9,2.91888]
[1721267608652,2.91843,3426.5,3425.8,2.2834]
[1721267608849,2.91843,3426.5,3425.7,2.9191]
[1721267609700,2.91837,3426.6,3425.8,2.919]
[1721267610409,2.91843,3426.5,3425.8,2.919]
[1721267614233,2.91843,3426.5,3425.6,2.91913]
[1721267614848,2.91843,3426.5,3425.7,2.91904]
[1721267615058,2.91843,3426.5,3425.8,2.91901]
[1721267615819,2.91861,3426.3,3425.6,2.91913]
[1721267617912,2.9187,3426.2,3425.4,5.24822]
[1721267619246,2.9187,3426.2,3425.5,2.91925]
[1721267621886,2.91878,3426.1,3425.4,2.3289]
[1721267622178,2.91878,3426.1,3425.3,2.91938]
[1721267622179,2.91886,3426.0,3425.3,2.91938]
[1721267622478,2.2968,3426.1,3425.4,2.91936]
[1721267622682,2.9187,3426.2,3425.4,2.91936]
[1721267622830,9.589,3426.5,3425.4,2.91936]
[1721267622831,2.91877,3426.1,3425.4,2.91936]
[1721267623032,2.91877,3426.1,3425.4,3.503247]
[1721267625233,2.91877,3426.1,3425.5,2.3838]
[1721267626873,2.91877,3426.1,3425.5,5.30307]
[1721267627685,2.9186,3426.3,3425.5,5.30307]
[1721267627866,10.07843,3426.5,3425.6,2.91919]
[1721267628053,7.16,3426.5,3425.8,2.91902]
[1721267628249,7.16,3426.5,3425.9,2.91892]
[1721267629986,8.204,3426.5,3425.9,2.91892]
[1721267630290,7.16,3426.5,3426.1,5.31785]
[1721267630590,7.16,3426.5,3425.9,2.91887]
[1721267632391,2.91851,3426.4,3425.8,5.31809]
[1721267634691,7.16,3426.5,3425.8,5.31809]
[1721267634895,10.07843,3426.5,3425.8,5.31809]
[1721267638315,10.07843,3426.5,3425.9,2.91892]
[1721267639523,7.16,3426.5,3425.9,2.91892]
[1721267640097,10.07844,3426.5,3425.9,2.91892]
[1721267640400,7.16,3426.5,3425.9,2.91892]
[1721267641231,7.16,3426.5,3426.0,2.91883]
[1721267642028,7.16,3426.5,3426.2,2.91863]
[1721267643193,7.16,3426.5,3426.3,2.91858]
[1721267644699,7.16,3426.9,3426.5,2.91842]
[1721267645343,7.16,3426.9,3426.6,2.91832]
[1721267645504,19.56,3427.3,3426.6,2.91832]
[1721267645829,22.47776,3427.3,3426.7,2.91825]
[1721267646029,19.56,3427.3,3426.7,2.91825]
[1721267647811,19.56,3427.3,3426.8,2.91816]
[1721267650234,19.56,3427.3,3426.5,2.91836]
[1721267650406,1.044,3427.2,3426.6,2.91828]
[1721267650733,1.044,3427.2,3426.7,2.91825]
[1721267652194,1.044,3427.2,3426.5,2.91836]
[1721267652195,1.044,3427.0,3426.5,2.91836]
[1721267652399,3.3032,3427.0,3426.5,2.91836]
[1721267654600,1.044,3427.0,3426.5,2.91836]
[1721267654800,1.22302176,3427.2,3426.7,2.91818]
[1721267654996,7.16,3427.3,3427.1,2.9179]
[1721267655243,7.16,3427.3,3427.1,5.3085]
[1721267655831,7.16,3427.3,3427.2,2.91783]
[1721267656540,7.16,3427.3,3427.0,2.91794]
[1721267656702,7.16,3427.3,3427.1,2.91791]
[1721267656902,7.16,3427.3,3427.2,2.91783]
[1721267657523,7.16,3427.3,3426.9,2.91803]
[1721267657742,7.16,3427.3,3426.9,3.6093108]
[1721267658106,7.16,3427.3,3426.9,2.91803]
[1721267658307,1.044,3427.2,3426.7,2.91824]
[1721267658506,1.044,3427.2,3426.8,2.91816]
[1721267658751,7.16,3427.3,3426.8,2.91816]
[1721267659424,3.298,3427.2,3426.5,2.91837]
[1721267659626,1.044,3427.2,3426.5,2.91837]
[1721267659834,1.044,3427.2,3426.6,3.0]
[1721267660756,10.07781,3427.3,3426.6,5.91833]
[1721267660757,7.16,3427.3,3426.6,5.91833]
[1721267661503,7.16,3427.3,3426.6,6.9064]
[1721267662323,10.07775,3427.3,3426.6,6.9064]
[1721267662523,10.07775,3427.3,3426.6,5.91833]
[1721267662975,1.044,3427.2,3426.6,5.91833]
[1721267663257,1.044,3427.2,3426.6,2.91833]
[1721267663624,3.96183,3427.2,3426.5,2.91837]
[1721267664575,3.96183,3427.2,3426.3,2.91858]
[1721267664728,2.91783,3427.2,3426.5,2.91837]
[1721267665536,2.91783,3427.2,3426.3,3.857368]
[1721267665738,2.91783,3427.2,3426.3,2.91853]
[1721267666466,2.91783,3427.2,3426.5,2.91842]
[1721267667320,3.96192,3427.1,3426.5,2.91842]
[1721267667978,2.91792,3427.1,3426.5,2.91842]
[1721267668794,8.204,3427.3,3425.8,2.2915]
[1721267668795,2.91814,3426.9,3425.8,2.2915]
[1721267669104,1.044,3426.5,3425.8,5.2915]
[1721267669894,1.044,3426.5,3425.9,2.91893]
[1721267670283,3.96243,3426.5,3425.9,2.91893]
[1721267670470,3.96232,3426.7,3425.9,2.91893]
[1721267670670,3.96232,3426.7,3425.9,3.836275]
[1721267670967,2.91836,3426.6,3425.9,3.836275]
[1721267671566,8.38302176,3427.3,3426.3,2.3315]
[1721267671764,8.38302176,3427.3,3426.4,1.044]
[1721267671765,8.204,3427.3,3426.4,1.044]
[1721267671968,8.204,3427.3,3426.3,2.3315]
[1721267672196,8.204,3427.3,3426.6,2.91834]
[1721267672408,2.91768,3427.4,3426.7,2.91824]
[1721267672594,2.91775,3427.3,3426.7,2.91824]
[1721267673807,3.96175,3427.3,3426.5,2.91837]
[1721267674306,2.91775,3427.3,3426.6,2.91833]
[1721267676080,2.91759,3427.5,3426.7,2.91825]
[1721267676483,8.38302176,3427.6,3427.1,2.91789]
[1721267676484,7.16,3427.6,3427.1,2.91789]
[1721267677089,7.16,3427.6,3426.9,2.91803]
[1721267677694,7.16,3427.6,3426.8,2.91817]
[1721267677695,2.91758,3427.5,3426.8,2.91817]
[1721267681291,2.91758,3427.5,3426.9,2.91806]
[1721267684215,7.16,3427.6,3427.1,2.9179]
[1721267685127,7.16,3427.6,3427.2,2.4223]
[1721267685627,7.16,3427.6,3427.2,5.3401]
[1721267686630,23.70019176,3428.0,3427.2,5.3401]
[1721267686809,11.30019176,3428.0,3427.2,5.3401]
[1721267687005,11.30019176,3428.0,3427.2,6.1659]
[1721267687723,8.38302176,3428.0,3427.4,2.91759]
[1721267688296,7.16,3428.0,3427.4,2.91759]
[1721267688608,8.38302176,3428.0,3427.4,2.91759]
[1721267689633,7.16,3428.0,3427.4,2.91759]
[1721267690529,8.38302176,3428.0,3427.4,2.91759]
[1721267690694,1.22302176,3427.9,3427.4,2.91759]
[1721267691316,1.22302176,3427.9,3427.1,2.91789]
[1721267691511,1.22302176,3427.9,3426.9,2.4634]
[1721267691735,1.22302176,3427.8,3426.9,2.4634]
[1721267692349,2.91741,3427.7,3427.0,2.91799]
[1721267692863,2.2979,3427.6,3427.0,2.91799]
[1721267694861,3.96041,3427.7,3427.0,2.91799]
[1721267699252,5.18343176,3427.7,3427.0,2.91799]
[1721267702477,1.043,3427.3,3426.6,2.4326]
[1721267702686,1.043,3427.3,3426.6,5.35089]
[1721267702978,1.043,3427.3,3426.7,2.91825]
[1721267702979,2.26602176,3427.3,3426.7,2.91825]
[1721267703142,1.043,3427.3,3426.7,2.91825]
[1721267703543,4.14070176,3427.4,3426.7,2.91825]
[1721267704743,4.14070176,3427.4,3426.7,0.931214]
[1721267704744,1.22302176,3427.4,3426.7,0.931214]
[1721267705072,1.22302176,3427.4,3426.8,2.91816]
[1721267705379,4.14069176,3427.4,3426.8,2.91816]
[1721267706169,1.22302176,3427.4,3426.8,2.91816]
[1721267708800,2.91758,3427.5,3426.8,2.91816]
[1721267708990,2.91758,3427.5,3426.8,3.92119768]
[1721267709303,7.16,3427.6,3427.0,2.91793]
[1721267710168,8.38302176,3427.6,3427.0,2.91793]
[1721267710366,7.16,3427.6,3427.0,2.91793]
[1721267710610,7.16,3427.6,3427.0,3.93770277]
[1721267710769,7.16,3427.6,3427.0,1.01977277]
[1721267711112,7.16,3427.6,3427.4,2.3122]
[1721267711270,1.22302176,3427.8,3427.4,2.3122]
[1721267711792,1.22302176,3427.8,3427.3,2.91767]
[1721267712111,1.22302176,3427.7,3427.1,5.41108]
[1721267712406,2.26602176,3427.7,3427.1,5.41108]
[1721267712568,2.26602176,3427.7,3427.1,5.41111]
[1721267713288,2.41243796,3427.7,3426.9,2.91808]
[1721267713488,3.96061,3427.5,3426.9,2.91808]
[1721267713697,5.18363176,3427.5,3426.9,2.91808]
[1721267713913,3.96061,3427.5,3426.9,2.91808]
[1721267714391,5.18363176,3427.5,3426.9,2.91808]
[1721267715417,2.91766,3427.4,3426.7,2.91822]
[1721267715572,1.043,3427.3,3426.5,5.2252]
[1721267715774,1.043,3427.0,3426.5,5.22522]
[1721267716084,5.18387176,3427.2,3426.5,5.22522]
[1721267716298,1.22302176,3427.1,3426.5,5.22522]
[1721267717574,1.22302176,3427.1,3426.6,2.91834]
[1721267718517,1.22302176,3427.4,3426.8,2.91815]
[1721267718814,4.14062176,3427.5,3426.8,2.91815]
[1721267719014,1.22302176,3427.3,3426.8,2.91815]
[1721267719390,1.22302176,3427.4,3426.8,2.91815]
[1721267721203,1.22302176,3427.3,3426.8,2.91815]
[1721267721408,1.22302176,3427.4,3426.8,2.91815]
[1721267722677,4.14062176,3427.5,3426.9,2.4789]
[1721267722903,4.14062176,3427.5,3426.9,5.39698]
[1721267723412,4.14062176,3427.5,3426.9,2.4789]
[1721267723586,4.14062176,3427.5,3426.9,5.39698]
[1721267723786,1.22302176,3427.5,3427.0,2.91798]
[1721267724021,1.22302176,3427.6,3427.1,2.91791]
[1721267724307,11.60834707,3427.7,3427.1,2.91791]
[1721267724308,11.30044176,3427.7,3427.1,2.91791]
[1721267725212,4.14044176,3427.7,3427.1,2.91791]
[1721267726318,2.91758,3427.5,3426.9,3.310414]
[1721267726516,4.14060176,3427.5,3426.9,2.4789]
[1721267726768,1.22302176,3427.4,3426.9,2.4789]
[1721267727011,4.14060176,3427.5,3426.9,2.4789]
[1721267727225,1.22302176,3427.4,3426.9,2.4789]
[1721267727386,1.22302176,3427.3,3426.6,2.91833]
[1721267727804,6.60585176,3427.4,3426.7,2.91824]
[1721267728378,2.91775,3427.3,3426.7,2.91824]
[1721267729918,2.91775,3427.3,3426.5,5.33686]
[1721267729919,2.91783,3427.2,3426.5,5.33686]
[1721267730223,2.91783,3427.2,3426.6,2.91833]
[1721267731622,2.91783,3427.2,3426.5,2.4185]
[1721267731926,4.14085176,3427.2,3426.5,5.33692]
[1721267732880,2.91783,3427.2,3426.5,5.33692]
[1721267733080,4.14085176,3427.2,3426.5,5.33692]